[Event "Titled Tuesday Blitz March 01 Early 2022"]
[White "Caruana, Fabiano"]
[Black "Lou, Yiping"]
[WhiteFideId "2020009"]
[BlackFideId "8603928"]
[WhiteElo "2744"]
[BlackElo "2412"]
[Result "1-0"]
[Round "07"]
[TimeControl "180+1"]
[Date "2022.03.01"]
[WhiteClock "0:00:18"]
[BlackClock "0:00:02"]

1. e4 {[%clk 0:03:00]}  e5 {[%clk 0:02:59]} 2. Nf3 {[%clk 0:03:01]}  Nc6 {[%clk 0:02:59]} 3. Bb5 {[%clk 0:03:01]}  Nf6 {[%clk 0:02:58]} 4. d3 {[%clk 0:03:01]}  Bc5 {[%clk 0:02:57]} 5. Bxc6 {[%clk 0:03:01]}  dxc6 {[%clk 0:02:56]} 6. Bg5 {[%clk 0:03:02]}  Be6 {[%clk 0:02:15]} 7. Nbd2 {[%clk 0:02:59]}  Bd6 {[%clk 0:01:56]} 8. d4 {[%clk 0:02:58]}  h6 {[%clk 0:01:38]} 9. Bh4 {[%clk 0:02:58]}  Bg4 {[%clk 0:01:25]} 10. O-O {[%clk 0:02:16]}  g5 {[%clk 0:01:01]} 11. Bg3 {[%clk 0:02:15]}  Nd7 {[%clk 0:01:01]} 12. Nc4 {[%clk 0:02:06]}  Qe7 {[%clk 0:00:55]} 13. Ne3 {[%clk 0:02:03]}  Bh5 {[%clk 0:00:41]} 14. Nf5 {[%clk 0:01:46]}  Qf6 {[%clk 0:00:42]} 15. Qd3 {[%clk 0:01:28]}  O-O-O {[%clk 0:00:34]} 16. dxe5 {[%clk 0:00:54]}  Nxe5 {[%clk 0:00:26]} 17. Nxd6+ {[%clk 0:00:51]}  cxd6 {[%clk 0:00:22]} 18. Nxe5 {[%clk 0:00:51]}  dxe5 {[%clk 0:00:22]} 19. Qe3 {[%clk 0:00:46]}  b6 {[%clk 0:00:16]} 20. a4 {[%clk 0:00:42]}  Kb7 {[%clk 0:00:14]} 21. a5 {[%clk 0:00:42]}  Qe6 {[%clk 0:00:09]} 22. f3 {[%clk 0:00:38]}  f6 {[%clk 0:00:06]} 23. Bf2 {[%clk 0:00:35]}  c5 {[%clk 0:00:06]} 24. Ra3 {[%clk 0:00:31]}  Qc6 {[%clk 0:00:04]} 25. Rfa1 {[%clk 0:00:30]}  b5 {[%clk 0:00:04]} 26. a6+ {[%clk 0:00:29]}  Ka8 {[%clk 0:00:03]} 27. Qxc5 {[%clk 0:00:30]}  Qxc5 {[%clk 0:00:04]} 28. Bxc5 {[%clk 0:00:30]}  Rd2 {[%clk 0:00:03]} 29. Rc3 {[%clk 0:00:28]}  Rc8 {[%clk 0:00:03]} 30. Raa3 {[%clk 0:00:25]}  Bf7 {[%clk 0:00:03]} 31. h3 {[%clk 0:00:20]}  h5 {[%clk 0:00:03]} 32. Be7 {[%clk 0:00:19]}  Rxc2 {[%clk 0:00:03]} 33. Rxc8+ {[%clk 0:00:19]}  Rxc8 {[%clk 0:00:02]} 34. Bxf6 {[%clk 0:00:19]}  g4 {[%clk 0:00:03]} 35. hxg4 {[%clk 0:00:19]}  hxg4 {[%clk 0:00:03]} 36. Bxe5 {[%clk 0:00:19]}  gxf3 {[%clk 0:00:03]} 37. gxf3 {[%clk 0:00:20]}  Rc2 {[%clk 0:00:03]} 38. Rc3 {[%clk 0:00:18]}  Rxc3 {[%clk 0:00:03]} 39. Bxc3 {[%clk 0:00:19]}  Bc4 {[%clk 0:00:02]} 40. Kf2 {[%clk 0:00:19]}  b4 {[%clk 0:00:02]} 41. Bxb4 {[%clk 0:00:19]}  Bxa6 {[%clk 0:00:03]} 42. Ke3 {[%clk 0:00:20]}  Kb7 {[%clk 0:00:04]} 43. f4 {[%clk 0:00:18]}  Kc6 {[%clk 0:00:04]} 44. f5 {[%clk 0:00:19]}  Kd7 {[%clk 0:00:03]} 45. Kf4 {[%clk 0:00:19]}  Bd3 {[%clk 0:00:03]} 46. e5 {[%clk 0:00:20]}  Bc4 {[%clk 0:00:02]} 47. Kg5 {[%clk 0:00:18]} 1-0


[Site "https://www.chess.com"]

[Event "Titled Tuesday Blitz March 01 Early 2022"]
[White "Dauner, Benedikt"]
[Black "Mohammad Fahad, Rahman"]
[WhiteFideId "16225899"]
[BlackFideId "10207791"]
[WhiteElo "2230"]
[BlackElo "2323"]
[Result "0-1"]
[Round "07"]
[TimeControl "180+1"]
[Date "2022.03.01"]
[WhiteClock "0:00:02"]
[BlackClock "0:00:10"]

1. d4 {[%clk 0:03:00]}  d5 {[%clk 0:02:59]} 2. Nf3 {[%clk 0:03:00]}  f6 {[%clk 0:02:58]} 3. c4 {[%clk 0:02:59]}  e6 {[%clk 0:02:56]} 4. Nc3 {[%clk 0:02:59]}  c6 {[%clk 0:02:50]} 5. e4 {[%clk 0:02:58]}  dxe4 {[%clk 0:02:47]} 6. Nxe4 {[%clk 0:02:58]}  Bb4+ {[%clk 0:02:48]} 7. Bd2 {[%clk 0:02:56]}  Bxd2+ {[%clk 0:02:48]} 8. Qxd2 {[%clk 0:02:57]}  Ne7 {[%clk 0:02:49]} 9. Bd3 {[%clk 0:02:56]}  O-O {[%clk 0:02:49]} 10. O-O {[%clk 0:02:56]}  Ng6 {[%clk 0:02:44]} 11. Rfe1 {[%clk 0:02:54]}  Nd7 {[%clk 0:02:44]} 12. Nd6 {[%clk 0:02:47]}  Nb6 {[%clk 0:02:36]} 13. c5 {[%clk 0:02:38]}  Nd5 {[%clk 0:02:37]} 14. g3 {[%clk 0:02:28]}  b6 {[%clk 0:02:29]} 15. b4 {[%clk 0:02:23]}  Bd7 {[%clk 0:02:26]} 16. h4 {[%clk 0:02:13]}  Nh8 {[%clk 0:02:17]} 17. a3 {[%clk 0:01:58]}  Nf7 {[%clk 0:02:17]} 18. Qc2 {[%clk 0:01:58]}  f5 {[%clk 0:02:00]} 19. Nxf7 {[%clk 0:01:55]}  Rxf7 {[%clk 0:02:01]} 20. Re2 {[%clk 0:01:42]}  Rf6 {[%clk 0:01:57]} 21. Rae1 {[%clk 0:01:41]}  h6 {[%clk 0:01:48]} 22. Ne5 {[%clk 0:01:36]}  Be8 {[%clk 0:01:48]} 23. cxb6 {[%clk 0:01:23]}  Qxb6 {[%clk 0:01:45]} 24. Qc5 {[%clk 0:01:16]}  Rd8 {[%clk 0:01:41]} 25. Bc4 {[%clk 0:01:02]}  Nc3 {[%clk 0:01:31]} 26. Bxe6+ {[%clk 0:00:40]}  Rxe6 {[%clk 0:01:25]} 27. Qxc3 {[%clk 0:00:40]}  Qxd4 {[%clk 0:01:24]} 28. Qxd4 {[%clk 0:00:35]}  Rxd4 {[%clk 0:01:25]} 29. Nf3 {[%clk 0:00:27]}  Rxe2 {[%clk 0:01:20]} 30. Rxe2 {[%clk 0:00:28]}  Rd1+ {[%clk 0:01:19]} 31. Re1 {[%clk 0:00:26]}  Rxe1+ {[%clk 0:01:17]} 32. Nxe1 {[%clk 0:00:27]}  Kf7 {[%clk 0:01:14]} 33. f3 {[%clk 0:00:15]}  Ke6 {[%clk 0:01:13]} 34. Kf2 {[%clk 0:00:16]}  Kd5 {[%clk 0:01:14]} 35. Ke3 {[%clk 0:00:16]}  Kc4 {[%clk 0:01:14]} 36. Nd3 {[%clk 0:00:11]}  Kb3 {[%clk 0:01:11]} 37. Kd4 {[%clk 0:00:11]}  Kxa3 {[%clk 0:01:01]} 38. Kc5 {[%clk 0:00:11]}  Kb3 {[%clk 0:01:02]} 39. Nf4 {[%clk 0:00:10]}  Kc3 {[%clk 0:00:53]} 40. Ne6 {[%clk 0:00:10]}  g6 {[%clk 0:00:54]} 41. g4 {[%clk 0:00:09]}  fxg4 {[%clk 0:00:51]} 42. fxg4 {[%clk 0:00:10]}  Kd3 {[%clk 0:00:50]} 43. Nc7 {[%clk 0:00:06]}  Bd7 {[%clk 0:00:49]} 44. Na6 {[%clk 0:00:06]}  Bxg4 {[%clk 0:00:26]} 45. Kxc6 {[%clk 0:00:06]}  Bf3+ {[%clk 0:00:16]} 46. Kd6 {[%clk 0:00:05]}  g5 {[%clk 0:00:16]} 47. hxg5 {[%clk 0:00:05]}  hxg5 {[%clk 0:00:17]} 48. Ke5 {[%clk 0:00:06]}  Ke3 {[%clk 0:00:17]} 49. Nc5 {[%clk 0:00:03]}  g4 {[%clk 0:00:16]} 50. Ne6 {[%clk 0:00:02]}  g3 {[%clk 0:00:15]} 51. Nf4 {[%clk 0:00:03]}  a6 {[%clk 0:00:12]} 52. Nh3 {[%clk 0:00:03]}  g2 {[%clk 0:00:12]} 53. Ng1 {[%clk 0:00:02]}  Bg4 {[%clk 0:00:09]} 54. Kf6 {[%clk 0:00:01]}  Kf2 {[%clk 0:00:10]} 55. Kg5 {[%clk 0:00:02]}  Kxg1 {[%clk 0:00:10]} 56. Kxg4 {[%clk 0:00:02]}  Kf2 {[%clk 0:00:10]} 57. b5 {[%clk 0:00:02]}  g1=Q+ {[%clk 0:00:10]} 0-1


[Site "https://www.chess.com"]

[Event "Titled Tuesday Blitz March 01 Early 2022"]
[White "De Silva, L M S T"]
[Black "Ohanyan, Emin"]
[WhiteFideId "9953698"]
[BlackFideId "13312022"]
[WhiteElo "1631"]
[BlackElo "1809"]
[Result "0-1"]
[Round "07"]
[TimeControl "180+1"]
[Date "2022.03.01"]
[WhiteClock "0:02:10"]
[BlackClock "0:00:27"]

1. e4 {[%clk 0:03:00]}  e5 {[%clk 0:02:58]} 2. Nf3 {[%clk 0:03:00]}  Nc6 {[%clk 0:02:59]} 3. Bb5 {[%clk 0:03:01]}  f5 {[%clk 0:02:58]} 4. d4 {[%clk 0:03:00]}  fxe4 {[%clk 0:02:58]} 5. Nxe5 {[%clk 0:03:00]}  Nxe5 {[%clk 0:02:59]} 6. dxe5 {[%clk 0:03:01]}  c6 {[%clk 0:03:00]} 7. Bc4 {[%clk 0:02:59]}  Qa5+ {[%clk 0:02:59]} 8. Nd2 {[%clk 0:02:59]}  Qxe5 {[%clk 0:02:58]} 9. O-O {[%clk 0:02:59]}  d5 {[%clk 0:02:59]} 10. Bb3 {[%clk 0:02:58]}  Nf6 {[%clk 0:02:59]} 11. c4 {[%clk 0:02:51]}  Bd6 {[%clk 0:01:30]} 12. f4 {[%clk 0:02:50]}  Qe7 {[%clk 0:01:07]} 13. Re1 {[%clk 0:02:40]}  Bc5+ {[%clk 0:01:03]} 14. Kh1 {[%clk 0:02:36]}  Ng4 {[%clk 0:01:02]} 15. Re2 {[%clk 0:02:11]}  Nf2+ {[%clk 0:00:42]} 16. Rxf2 {[%clk 0:02:11]}  Bxf2 {[%clk 0:00:42]} 17. cxd5 {[%clk 0:02:12]}  e3 {[%clk 0:00:29]} 18. Nf3 {[%clk 0:02:10]}  e2 {[%clk 0:00:27]} 0-1


[Site "https://www.chess.com"]

[Event "Titled Tuesday Blitz March 01 Early 2022"]
[White "Demchenko, Anton"]
[Black "Zavgorodniy, Sergiy"]
[WhiteFideId "4160258"]
[BlackFideId "14110148"]
[WhiteElo "2539"]
[BlackElo "2420"]
[Result "1/2-1/2"]
[Round "07"]
[TimeControl "180+1"]
[Date "2022.03.01"]
[WhiteClock "0:00:07"]
[BlackClock "0:00:08"]

1. e4 {[%clk 0:03:00]}  e5 {[%clk 0:02:59]} 2. Nf3 {[%clk 0:03:00]}  d6 {[%clk 0:02:58]} 3. d4 {[%clk 0:02:59]}  exd4 {[%clk 0:02:58]} 4. Qxd4 {[%clk 0:02:56]}  Nc6 {[%clk 0:02:57]} 5. Bb5 {[%clk 0:02:56]}  Bd7 {[%clk 0:02:58]} 6. Bxc6 {[%clk 0:02:55]}  Bxc6 {[%clk 0:02:58]} 7. Bg5 {[%clk 0:02:49]}  Nf6 {[%clk 0:02:54]} 8. Nc3 {[%clk 0:02:46]}  Be7 {[%clk 0:02:54]} 9. O-O-O {[%clk 0:02:47]}  O-O {[%clk 0:02:54]} 10. Rhe1 {[%clk 0:02:45]}  h6 {[%clk 0:02:49]} 11. Bf4 {[%clk 0:02:43]}  Re8 {[%clk 0:02:49]} 12. Qd3 {[%clk 0:02:40]}  Nd7 {[%clk 0:02:47]} 13. Nd4 {[%clk 0:02:39]}  Bf6 {[%clk 0:02:44]} 14. f3 {[%clk 0:02:31]}  Bxd4 {[%clk 0:02:35]} 15. Qxd4 {[%clk 0:02:31]}  Qf6 {[%clk 0:02:34]} 16. Qd2 {[%clk 0:02:25]}  Ne5 {[%clk 0:02:21]} 17. Bg3 {[%clk 0:02:19]}  b5 {[%clk 0:02:09]} 18. Ne2 {[%clk 0:02:11]}  Nc4 {[%clk 0:02:05]} 19. Qd4 {[%clk 0:02:08]}  Qxd4 {[%clk 0:01:53]} 20. Nxd4 {[%clk 0:02:08]}  Bd7 {[%clk 0:01:54]} 21. b3 {[%clk 0:02:07]}  Ne5 {[%clk 0:01:52]} 22. c3 {[%clk 0:02:00]}  g6 {[%clk 0:01:52]} 23. Nc2 {[%clk 0:01:55]}  Kg7 {[%clk 0:01:50]} 24. Bf2 {[%clk 0:01:53]}  a5 {[%clk 0:01:44]} 25. Kb2 {[%clk 0:01:51]}  g5 {[%clk 0:01:41]} 26. h3 {[%clk 0:01:49]}  f6 {[%clk 0:01:41]} 27. Ne3 {[%clk 0:01:42]}  Be6 {[%clk 0:01:40]} 28. Bg3 {[%clk 0:01:29]}  Kf7 {[%clk 0:01:38]} 29. Rf1 {[%clk 0:01:26]}  a4 {[%clk 0:01:30]} 30. f4 {[%clk 0:01:18]}  gxf4 {[%clk 0:01:29]} 31. Bxf4 {[%clk 0:01:19]}  Kg7 {[%clk 0:01:28]} 32. g4 {[%clk 0:01:05]}  axb3 {[%clk 0:01:27]} 33. axb3 {[%clk 0:01:05]}  Ra6 {[%clk 0:01:15]} 34. Bxe5 {[%clk 0:01:05]}  fxe5 {[%clk 0:01:14]} 35. Ra1 {[%clk 0:01:05]}  Rea8 {[%clk 0:01:11]} 36. Rxa6 {[%clk 0:01:04]}  Rxa6 {[%clk 0:01:12]} 37. h4 {[%clk 0:01:00]}  Ra8 {[%clk 0:01:08]} 38. c4 {[%clk 0:00:54]}  bxc4 {[%clk 0:01:07]} 39. bxc4 {[%clk 0:00:55]}  Rb8+ {[%clk 0:01:06]} 40. Kc3 {[%clk 0:00:56]}  Ra8 {[%clk 0:01:05]} 41. Rb1 {[%clk 0:00:38]}  Ra3+ {[%clk 0:01:04]} 42. Kd2 {[%clk 0:00:39]}  Ra2+ {[%clk 0:01:03]} 43. Kd3 {[%clk 0:00:39]}  Ra3+ {[%clk 0:01:03]} 44. Ke2 {[%clk 0:00:39]}  Ra2+ {[%clk 0:00:58]} 45. Kf3 {[%clk 0:00:39]}  Ra7 {[%clk 0:00:49]} 46. Rb8 {[%clk 0:00:37]}  Kf7 {[%clk 0:00:44]} 47. Rd8 {[%clk 0:00:31]}  Kg7 {[%clk 0:00:42]} 48. Nf5+ {[%clk 0:00:25]}  Bxf5 {[%clk 0:00:41]} 49. exf5 {[%clk 0:00:26]}  Ra3+ {[%clk 0:00:38]} 50. Ke4 {[%clk 0:00:23]}  Rg3 {[%clk 0:00:38]} 51. Kd5 {[%clk 0:00:23]}  Rxg4 {[%clk 0:00:36]} 52. Ke6 {[%clk 0:00:23]}  Rf4 {[%clk 0:00:24]} 53. Rd7+ {[%clk 0:00:23]}  Kg8 {[%clk 0:00:23]} 54. Rxc7 {[%clk 0:00:15]}  e4 {[%clk 0:00:22]} 55. Rc8+ {[%clk 0:00:15]}  Kg7 {[%clk 0:00:21]} 56. Rc7+ {[%clk 0:00:16]}  Kg8 {[%clk 0:00:21]} 57. Kf6 {[%clk 0:00:13]}  e3 {[%clk 0:00:20]} 58. Rc8+ {[%clk 0:00:12]}  Kh7 {[%clk 0:00:20]} 59. Rc7+ {[%clk 0:00:13]}  Kg8 {[%clk 0:00:19]} 60. h5 {[%clk 0:00:09]}  Re4 {[%clk 0:00:18]} 61. Kg6 {[%clk 0:00:07]}  Rg4+ {[%clk 0:00:17]} 62. Kxh6 {[%clk 0:00:08]}  Re4 {[%clk 0:00:16]} 63. Kg6 {[%clk 0:00:07]}  Rg4+ {[%clk 0:00:16]} 64. Kf6 {[%clk 0:00:08]}  Re4 {[%clk 0:00:16]} 65. Rg7+ {[%clk 0:00:07]}  Kf8 {[%clk 0:00:15]} 66. Ra7 {[%clk 0:00:04]}  Kg8 {[%clk 0:00:15]} 67. Rg7+ {[%clk 0:00:03]}  Kf8 {[%clk 0:00:15]} 68. Rg1 {[%clk 0:00:04]}  e2 {[%clk 0:00:14]} 69. Re1 {[%clk 0:00:05]}  Kg8 {[%clk 0:00:14]} 70. Kg6 {[%clk 0:00:04]}  Rg4+ {[%clk 0:00:13]} 71. Kf6 {[%clk 0:00:03]}  Re4 {[%clk 0:00:13]} 72. Kg5 {[%clk 0:00:04]}  Kg7 {[%clk 0:00:12]} 73. h6+ {[%clk 0:00:04]}  Kh7 {[%clk 0:00:12]} 74. f6 {[%clk 0:00:05]}  Re5+ {[%clk 0:00:10]} 75. Kf4 {[%clk 0:00:04]}  Kg6 {[%clk 0:00:10]} 76. Rg1+ {[%clk 0:00:03]}  Kxf6 {[%clk 0:00:07]} 77. h7 {[%clk 0:00:03]}  Rh5 {[%clk 0:00:08]} 78. Re1 {[%clk 0:00:03]}  Rxh7 {[%clk 0:00:08]} 79. Rxe2 {[%clk 0:00:04]}  Rh4+ {[%clk 0:00:08]} 80. Ke3 {[%clk 0:00:04]}  Rxc4 {[%clk 0:00:08]} 81. Kd3 {[%clk 0:00:05]}  Rc5 {[%clk 0:00:07]} 82. Re8 {[%clk 0:00:05]}  Re5 {[%clk 0:00:07]} 83. Rh8 {[%clk 0:00:04]}  Ke6 {[%clk 0:00:08]} 84. Rh6+ {[%clk 0:00:04]}  Kd5 {[%clk 0:00:08]} 85. Rh4 {[%clk 0:00:04]}  Rf5 {[%clk 0:00:08]} 86. Kd2 {[%clk 0:00:05]}  Re5 {[%clk 0:00:08]} 87. Rh3 {[%clk 0:00:05]}  Kc5 {[%clk 0:00:08]} 88. Rc3+ {[%clk 0:00:05]}  Kd4 {[%clk 0:00:08]} 89. Rd3+ {[%clk 0:00:05]}  Kc5 {[%clk 0:00:08]} 90. Rc3+ {[%clk 0:00:06]}  Kd4 {[%clk 0:00:08]} 91. Rd3+ {[%clk 0:00:06]}  Kc5 {[%clk 0:00:08]} 92. Rc3+ {[%clk 0:00:07]} 1/2-1/2


[Site "https://www.chess.com"]

[Event "Titled Tuesday Blitz March 01 Early 2022"]
[White "Dobre, Claudiu-Cristian"]
[Black "Marzaduri, Riccardo"]
[WhiteFideId "1211854"]
[BlackFideId "886084"]
[WhiteElo "2207"]
[BlackElo "2200"]
[Result "1-0"]
[Round "07"]
[TimeControl "180+1"]
[Date "2022.03.01"]
[WhiteClock "0:01:22"]
[BlackClock "0:01:05"]

1. c4 {[%clk 0:03:00]}  Nf6 {[%clk 0:02:44]} 2. Nc3 {[%clk 0:02:58]}  e6 {[%clk 0:02:42]} 3. e4 {[%clk 0:02:57]}  d6 {[%clk 0:02:37]} 4. d4 {[%clk 0:02:55]}  Be7 {[%clk 0:02:36]} 5. Nf3 {[%clk 0:02:55]}  O-O {[%clk 0:02:35]} 6. Be2 {[%clk 0:02:55]}  Nc6 {[%clk 0:02:30]} 7. O-O {[%clk 0:02:55]}  e5 {[%clk 0:02:25]} 8. h3 {[%clk 0:02:55]}  exd4 {[%clk 0:02:24]} 9. Nxd4 {[%clk 0:02:54]}  Nxd4 {[%clk 0:02:24]} 10. Qxd4 {[%clk 0:02:54]}  Be6 {[%clk 0:02:24]} 11. Bf4 {[%clk 0:02:50]}  Nd7 {[%clk 0:02:13]} 12. Nd5 {[%clk 0:02:50]}  Bxd5 {[%clk 0:02:13]} 13. Qxd5 {[%clk 0:02:42]}  Rb8 {[%clk 0:02:07]} 14. b4 {[%clk 0:02:36]}  Bf6 {[%clk 0:02:05]} 15. Rac1 {[%clk 0:02:34]}  Be5 {[%clk 0:02:05]} 16. Be3 {[%clk 0:02:32]}  a6 {[%clk 0:01:54]} 17. f4 {[%clk 0:02:21]}  Bf6 {[%clk 0:01:54]} 18. Ba7 {[%clk 0:02:17]}  Nb6 {[%clk 0:01:47]} 19. Qd3 {[%clk 0:02:05]}  Rc8 {[%clk 0:01:45]} 20. Bxb6 {[%clk 0:02:04]}  cxb6 {[%clk 0:01:45]} 21. Rcd1 {[%clk 0:02:02]}  Re8 {[%clk 0:01:39]} 22. Bf3 {[%clk 0:01:49]}  b5 {[%clk 0:01:32]} 23. cxb5 {[%clk 0:01:38]}  Qb6+ {[%clk 0:01:29]} 24. Kh2 {[%clk 0:01:38]}  Qxb5 {[%clk 0:01:24]} 25. Qxb5 {[%clk 0:01:38]}  axb5 {[%clk 0:01:24]} 26. Rxd6 {[%clk 0:01:38]}  Bd8 {[%clk 0:01:09]} 27. e5 {[%clk 0:01:33]}  Be7 {[%clk 0:01:08]} 28. Rd7 {[%clk 0:01:32]}  Bxb4 {[%clk 0:01:07]} 29. Rxb7 {[%clk 0:01:29]}  Bd2 {[%clk 0:01:07]} 30. Bd5 {[%clk 0:01:27]}  Rf8 {[%clk 0:01:05]} 31. Rxb5 {[%clk 0:01:22]} 1-0


[Site "https://www.chess.com"]

[Event "Titled Tuesday Blitz March 01 Early 2022"]
[White "Durarbayli, Vasif"]
[Black "Goltsev, Dmitry"]
[WhiteFideId "13402935"]
[BlackFideId "24176710"]
[WhiteElo "2528"]
[BlackElo "2273"]
[Result "1-0"]
[Round "07"]
[TimeControl "180+1"]
[Date "2022.03.01"]
[WhiteClock "0:00:15"]
[BlackClock "0:00:29"]

1. e4 {[%clk 0:03:00]}  e6 {[%clk 0:02:59]} 2. d4 {[%clk 0:03:00]}  d5 {[%clk 0:03:00]} 3. e5 {[%clk 0:03:00]}  c5 {[%clk 0:03:00]} 4. c3 {[%clk 0:03:01]}  Nc6 {[%clk 0:03:00]} 5. Nf3 {[%clk 0:03:01]}  Nge7 {[%clk 0:03:00]} 6. Bd3 {[%clk 0:02:57]}  Nf5 {[%clk 0:03:00]} 7. Bxf5 {[%clk 0:02:57]}  exf5 {[%clk 0:03:01]} 8. dxc5 {[%clk 0:02:56]}  Bxc5 {[%clk 0:03:01]} 9. O-O {[%clk 0:02:56]}  h6 {[%clk 0:03:00]} 10. Nbd2 {[%clk 0:02:54]}  Be6 {[%clk 0:03:00]} 11. Nb3 {[%clk 0:02:54]}  Be7 {[%clk 0:03:00]} 12. Nbd4 {[%clk 0:02:44]}  a6 {[%clk 0:02:59]} 13. Qd3 {[%clk 0:02:44]}  g6 {[%clk 0:02:58]} 14. Re1 {[%clk 0:02:35]}  Qd7 {[%clk 0:02:55]} 15. b4 {[%clk 0:02:33]}  Rc8 {[%clk 0:02:53]} 16. a4 {[%clk 0:02:31]}  Nd8 {[%clk 0:02:52]} 17. Nb3 {[%clk 0:02:19]}  g5 {[%clk 0:02:47]} 18. Nfd4 {[%clk 0:02:15]}  f4 {[%clk 0:02:35]} 19. Ba3 {[%clk 0:02:12]}  Qxa4 {[%clk 0:02:27]} 20. Nc5 {[%clk 0:01:40]}  Bxc5 {[%clk 0:02:18]} 21. bxc5 {[%clk 0:01:41]}  Qc4 {[%clk 0:02:18]} 22. Qxc4 {[%clk 0:01:26]}  dxc4 {[%clk 0:02:18]} 23. Rab1 {[%clk 0:01:27]}  Bd5 {[%clk 0:02:15]} 24. Nf5 {[%clk 0:01:17]}  Rc7 {[%clk 0:02:05]} 25. Rbd1 {[%clk 0:01:13]}  Be6 {[%clk 0:02:00]} 26. Nd6+ {[%clk 0:01:13]}  Kf8 {[%clk 0:01:56]} 27. c6 {[%clk 0:00:55]}  Nxc6 {[%clk 0:01:56]} 28. Nb5+ {[%clk 0:00:42]}  Re7 {[%clk 0:01:56]} 29. Nd4 {[%clk 0:00:25]}  Ke8 {[%clk 0:01:27]} 30. Nxc6 {[%clk 0:00:24]}  bxc6 {[%clk 0:01:28]} 31. Bxe7 {[%clk 0:00:21]}  Kxe7 {[%clk 0:01:29]} 32. Ra1 {[%clk 0:00:21]}  Ra8 {[%clk 0:01:25]} 33. Reb1 {[%clk 0:00:20]}  Bd5 {[%clk 0:01:24]} 34. Ra5 {[%clk 0:00:13]}  Ke6 {[%clk 0:01:23]} 35. Rb6 {[%clk 0:00:13]}  g4 {[%clk 0:01:15]} 36. Raxa6 {[%clk 0:00:12]}  Rxa6 {[%clk 0:01:14]} 37. Rxa6 {[%clk 0:00:12]}  Kxe5 {[%clk 0:01:14]} 38. Ra1 {[%clk 0:00:10]}  f3 {[%clk 0:01:08]} 39. g3 {[%clk 0:00:10]}  h5 {[%clk 0:01:06]} 40. Rd1 {[%clk 0:00:11]}  f5 {[%clk 0:01:05]} 41. Kf1 {[%clk 0:00:11]}  f4 {[%clk 0:01:00]} 42. Rd4 {[%clk 0:00:09]}  fxg3 {[%clk 0:00:57]} 43. hxg3 {[%clk 0:00:10]}  Be4 {[%clk 0:00:57]} 44. Ke1 {[%clk 0:00:10]}  Bd3 {[%clk 0:00:56]} 45. Rd8 {[%clk 0:00:10]}  Kf5 {[%clk 0:00:55]} 46. Rh8 {[%clk 0:00:10]}  Kg5 {[%clk 0:00:55]} 47. Kd2 {[%clk 0:00:11]}  Kg6 {[%clk 0:00:54]} 48. Ke3 {[%clk 0:00:11]}  Kg5 {[%clk 0:00:54]} 49. Rg8+ {[%clk 0:00:11]}  Kf5 {[%clk 0:00:54]} 50. Rf8+ {[%clk 0:00:11]}  Kg5 {[%clk 0:00:54]} 51. Rc8 {[%clk 0:00:10]}  Kf5 {[%clk 0:00:37]} 52. Rxc6 {[%clk 0:00:10]}  Kg5 {[%clk 0:00:37]} 53. Rc5+ {[%clk 0:00:10]}  Kg6 {[%clk 0:00:36]} 54. Kf4 {[%clk 0:00:11]}  Be2 {[%clk 0:00:33]} 55. Rc6+ {[%clk 0:00:11]}  Kg7 {[%clk 0:00:28]} 56. Kg5 {[%clk 0:00:12]}  h4 {[%clk 0:00:27]} 57. Kxh4 {[%clk 0:00:11]}  Kf7 {[%clk 0:00:28]} 58. Rc5 {[%clk 0:00:12]}  Ke7 {[%clk 0:00:29]} 59. Kxg4 {[%clk 0:00:12]}  Kd6 {[%clk 0:00:29]} 60. Rg5 {[%clk 0:00:12]}  Ke6 {[%clk 0:00:30]} 61. Kf4 {[%clk 0:00:13]}  Kf6 {[%clk 0:00:30]} 62. Re5 {[%clk 0:00:14]}  Kg6 {[%clk 0:00:30]} 63. Re3 {[%clk 0:00:15]}  Kf6 {[%clk 0:00:29]} 64. Rxf3 {[%clk 0:00:15]} 1-0


[Site "https://www.chess.com"]

[Event "Titled Tuesday Blitz March 01 Early 2022"]
[White "Escudero Donoso, Felipe"]
[Black "Batsiashvili, Nino"]
[WhiteFideId "3410595"]
[BlackFideId "13602993"]
[WhiteElo "2184"]
[BlackElo "2230"]
[Result "0-1"]
[Round "07"]
[TimeControl "180+1"]
[Date "2022.03.01"]
[WhiteClock "0:00:20"]
[BlackClock "0:00:21"]

1. Nf3 {[%clk 0:02:57]}  d5 {[%clk 0:02:58]} 2. d4 {[%clk 0:02:56]}  Nf6 {[%clk 0:02:57]} 3. c4 {[%clk 0:02:56]}  e6 {[%clk 0:02:57]} 4. g3 {[%clk 0:02:56]}  c5 {[%clk 0:02:50]} 5. cxd5 {[%clk 0:02:55]}  exd5 {[%clk 0:02:50]} 6. Bg2 {[%clk 0:02:56]}  Nc6 {[%clk 0:02:50]} 7. O-O {[%clk 0:02:57]}  Be7 {[%clk 0:02:50]} 8. Nc3 {[%clk 0:02:57]}  O-O {[%clk 0:02:50]} 9. b3 {[%clk 0:02:58]}  Ne4 {[%clk 0:02:42]} 10. Bb2 {[%clk 0:02:58]}  Bf6 {[%clk 0:02:42]} 11. Nxe4 {[%clk 0:02:59]}  dxe4 {[%clk 0:02:42]} 12. Nd2 {[%clk 0:02:59]}  Bxd4 {[%clk 0:02:37]} 13. Bxd4 {[%clk 0:02:58]}  cxd4 {[%clk 0:02:35]} 14. Nxe4 {[%clk 0:02:57]}  Re8 {[%clk 0:02:34]} 15. Rc1 {[%clk 0:02:52]}  Bg4 {[%clk 0:02:28]} 16. Re1 {[%clk 0:02:49]}  Rc8 {[%clk 0:02:21]} 17. Qd2 {[%clk 0:02:44]}  Ne5 {[%clk 0:02:06]} 18. Rxc8 {[%clk 0:02:41]}  Bxc8 {[%clk 0:02:06]} 19. Rd1 {[%clk 0:02:35]}  Nc6 {[%clk 0:02:02]} 20. Nc5 {[%clk 0:02:29]}  Qe7 {[%clk 0:01:51]} 21. Nd3 {[%clk 0:02:08]}  Bg4 {[%clk 0:01:46]} 22. Nf4 {[%clk 0:01:56]}  g5 {[%clk 0:01:12]} 23. Nd5 {[%clk 0:01:54]}  Qd8 {[%clk 0:01:13]} 24. Nb4 {[%clk 0:01:31]}  Rxe2 {[%clk 0:01:09]} 25. Qd3 {[%clk 0:00:55]}  Nxb4 {[%clk 0:01:09]} 26. Qc4 {[%clk 0:00:55]}  Nc6 {[%clk 0:00:50]} 27. Bxc6 {[%clk 0:00:49]}  bxc6 {[%clk 0:00:42]} 28. Rxd4 {[%clk 0:00:50]}  Qf6 {[%clk 0:00:27]} 29. f4 {[%clk 0:00:20]}  Rxa2 {[%clk 0:00:23]} 30. fxg5 {[%clk 0:00:20]}  Qf2+ {[%clk 0:00:21]} 0-1


[Site "https://www.chess.com"]